Cogmind - Beta 12 @@@ ROGUE MODE // 2023.03.10 @ 14:10:29 Player: ktur Result: Destroyed by Lightning with EMDS Performance ------------- Evolutions (4) 2000 Regions Visited (13) 2600 Robots Destroyed (158) 790 Value Destroyed (5667) 5667 Prototype IDs (23) 460 Alien Tech Used (0) 0 Bonus (2893) 2893 TOTAL SCORE: 14410 Bonus ------- High Alert Combat Kills 668 Follower Combat Kills 737 Entered Garrisons 400 Used RIF Installer 1000 Network Hubs Disabled 400 Friendly Fire -312 Cogmind --------- Core Integrity 0/850 Matter 228/300 Energy 318/320 System Corruption 15% Temperature Hot (273) Movement Treading (45) Location -6/Hub_04(d) Parts ------- > --- POWER (1) -------- Quantum-Deuterium Reactor > --- PROPULSION (4) --- Treaded Centrium-Cooled Exoskeleton > --- UTILITY (7) ------ Armored Scrap Engine Large Storage Unit Experimental Targeting Computer Experimental Targeting Computer > --- WEAPON (3) ------- Improved Spread Laser Kinetic Construct/G > --- INVENTORY (15) --- Coolant Injector High-capacity Storage Unit Gravity Neutralizer Advanced Terrain Scanner Transport Network Coupler Advanced ECM Suite Centrium Medium Armor Plating Relay Coupler [NC] (26) Relay Coupler [Sentry] (21) Precision Shock Rifle Precision Shock Rifle Heavy Missile Launcher Rocket Array Scatter Rocket Array Remote Datajack Peak State ------------ > --- POWER ------------ Quantum-Deuterium Reactor > --- PROPULSION ------- Centrium Heavy Treads Treaded Centrium-Cooled Exoskeleton > --- UTILITY ---------- Armored Scrap Engine Large Storage Unit Advanced Targeting Computer Experimental Targeting Computer Armor Integrity Analyzer Centrium Medium Armor Plating > --- WEAPON ----------- Precision Shock Rifle Improved Spread Laser Kinetic Construct/G > --- INVENTORY -------- Quantum Reactor Coolant Injector High-capacity Storage Unit Gravity Neutralizer Advanced Terrain Scanner Advanced Terrain Scanner Advanced ECM Suite Centrium Medium Armor Plating EM Disruption Field Improved System Shield Relay Coupler [NC] Relay Coupler [Sentry] Heavy Missile Launcher Rocket Array Remote Datajack [Rating: 100] Favorites ----------- Power Constructs Engine Heavy Ion Engine Power Core Light Nuclear Core Reactor Constructs Propulsion Light Treads Treads Light Treads Leg Aluminum Leg Wheel Compact Wheel Hover Unit Improved Airjet Flight Unit Improved Flight Unit Utility Armored Scrap Engine Device Armored Scrap Engine Storage Medium Storage Unit Processor Advanced Targeting Computer Hackware Relay Coupler [Swarmer] Protection Hardened Light Armor Plating Weapon Constructs Energy Gun Constructs Energy Cannon Advanced Beam Cannon Ballistic Gun Constructs Ballistic Cannon Improved Light Cannon Launcher Heavy Missile Launcher Special Weapon Remote Datajack Impact Weapon Powered Hammer Slashing Weapon Scythe Build | -11 -10 -9 -9 -9 -7 -7 -7 -7 -6 -6 -6 -6 -6 ------- Run | Jun Mat Mat Sto Rec Fac Gar Fac Gar Fac Ext Cet Arc Hub Slots Evolved 8 | . . 2 . . 4 . . . 2 . . . . Power . | . . . . . . . . . . . . . . Propulsion 2 | . . 1 . . 1 . . . . . . . . Utility 5 | . . 1 . . 3 . . . 1 . . . . Weapon 1 | . . . . . . . . . 1 . . . . Parts Attached 122 | 6 5 5 20 9 24 8 3 8 7 10 8 2 7 Power 8 | 1 1 . 1 1 2 . . 1 . . . . 1 Engine 7 | 1 1 . 1 1 1 . . 1 . . . . 1 Core 1 | . . . . . 1 . . . . . . . . Reactor . | . . . . . . . . . . . . . . Propulsion 35 | 2 1 3 7 2 12 4 . . . . 3 1 . Treads 24 | 2 1 2 7 1 7 . . . . . 3 1 . Leg 4 | . . . . . 4 . . . . . . . . Wheel 1 | . . 1 . . . . . . . . . . . Hover 5 | . . . . . 1 4 . . . . . . . Flight 1 | . . . . 1 . . . . . . . . . Utility 37 | 1 1 2 3 2 6 3 2 2 4 4 3 1 3 Device 14 | . . . 1 1 3 2 1 1 2 1 1 . 1 Storage 6 | 1 . . 1 1 1 . 1 . . 1 . . . Processor 8 | . . . . . . . . 1 2 2 . 1 2 Hackware 1 | . . . . . . 1 . . . . . . . Protection 8 | . 1 2 1 . 2 . . . . . 2 . . Artifact . | . . . . . . . . . . . . . . Weapon 42 | 2 2 . 9 4 4 1 1 5 3 6 2 . 3 Energy Gun 7 | . . . 3 2 . . . . . . . . 2 Energy Cannon 1 | . . . . 1 . . . . . . . . . Ballistic Gun 11 | 2 . . 5 1 3 . . . . . . . . Ballistic Cannon 3 | . 2 . 1 . . . . . . . . . . Launcher 8 | . . . . . 1 . . 1 2 2 1 . 1 Special Weapon 3 | . . . . . . . . 1 . 2 . . . Impact Weapon 4 | . . . . . . 1 1 . . 2 . . . Slashing Weapon 5 | . . . . . . . . 3 1 . 1 . . Piercing Weapon . | . . . . . . . . . . . . . . Special Melee Weapon . | . . . . . . . . . . . . . . Unidentified Prototypes 17 | . 1 . 2 4 2 . . 1 . 1 2 . 4 Parts Lost 33 | . . 1 . . 13 . . 2 5 1 7 1 3 Power 6 | . . . . . 2 . . 1 1 . 1 . 1 Propulsion 9 | . . 1 . . 6 . . . 1 . 1 . . Utility 9 | . . . . . 2 . . 1 . 1 3 . 2 Weapon 9 | . . . . . 3 . . . 3 . 2 1 . Highest Loss Streak 8 | . . 1 . . 8 . . 1 3 1 7 1 2 To Critical Strikes 2 | . . . . . . . . . 1 . 1 . . Average Slot Usage (%) 81 | . 98 96 99 79 82 83 84 77 67 65 68 68 65 Engine 6 | . 14 11 11 10 4 6 7 6 1 . 4 6 3 Core 1 | . . . . . 1 . . . 2 5 1 . . Treads 16 | . 28 21 33 32 14 . . 1 6 6 10 12 7 Leg 2 | . . . . . 10 . . . . . . . . Hover 2 | . . . . . 1 23 23 16 4 . . . . Device 12 | . . . 8 11 24 31 24 15 14 14 7 6 7 Storage 8 | . 14 11 11 11 7 1 5 7 6 6 6 6 6 Processor 5 | . . . . . . . . 6 14 16 13 16 18 Protection 6 | . 12 21 13 . 3 . . . . . 9 9 5 Energy Gun 3 | . . . 3 9 2 4 . 1 . 4 3 3 5 Ballistic Gun 5 | . 15 . 11 4 9 5 7 5 4 1 . 2 6 Ballistic Cannon 3 | . 11 22 7 . . . . . . . . . . Slashing Weapon 1 | . . . . . . . . 6 5 2 4 2 . Naked Turns . | . . . . . . . . . . . . . . Heaviest Build 101 | 12 22 31 31 92 101 58 27 27 33 41 50 50 56 Greatest Support 130 | 40 40 60 60 60 80 34 32 76 76 76 130 130 130 Greatest Overweight (x) 2 | . . 1 . 1 2 2 . 1 . . . . . Average Overweight (x) . | . . . . . . . . . . . . . . Largest Inventory Capacity 25 | 8 8 8 10 25 25 20 10 10 10 15 15 15 15 Average Capacity 13 | 7 8 8 8 15 20 8 9 10 10 13 15 15 15 Most Carried 20 | 4 8 8 10 13 20 20 10 10 10 15 15 15 15 Average Carried 11 | 2 7 7 8 9 17 7 9 9 9 11 14 15 14 Final Capacity 25 | 8 8 8 10 25 20 5 10 10 10 15 15 15 15 Final Carried 20 | 4 8 8 10 13 20 5 10 10 10 15 15 15 15 Scrap Engine Consumption 116 | . . . . 12 37 2 6 7 17 16 8 2 9 Constructs Created 16 | . . . . 2 4 1 . . 4 1 3 . 1 Constructs Modified 23 | . . . . 2 1 4 2 6 . 4 2 1 1 Class Distribution -------------------- 36% | Mutant 28% | Construct 26% | Scavenger-Mutant 6% | Scavenger-Construct Dominant Class ---------------- Mutant | -10/Materials Mutant | -9/Materials Scavenger-Mutant | -9/Storage Scavenger-Construct | -9/Recycling Scavenger-Mutant | -7/Factory Construct | -7/Garrison Construct | -7/Factory Construct | -7/Garrison Mutant | -6/Factory Construct | -6/Extension Mutant | -6/Cetus Mutant | -6/Archives Mutant | -6/Hub_04(d) Resources | -11 -10 -9 -9 -9 -7 -7 -7 -7 -6 -6 -6 -6 -6 ----------- Run | Jun Mat Mat Sto Rec Fac Gar Fac Gar Fac Ext Cet Arc Hub Matter Collected 3424 | 239 111 317 615 88 985 104 20 136 169 222 159 123 136 Remotely . | . . . . . . . . . . . . . . Salvage Created 7573 | . 261 226 998 349 1735 199 49 865 1060 546 638 336 311 Parts 351 | . 12 20 56 13 93 10 4 26 52 18 28 7 12 Haulers Intercepted 12 | . . . 3 1 2 . 1 . 2 2 . . 1 Recyclers Shooed 7 | . . . 4 . 2 . . . . . . . 1 Parts Field Recycled . | . . . . . . . . . . . . . . Retrieved Matter . | . . . . . . . . . . . . . . Parts Self-Destructed . | . . . . . . . . . . . . . . Prevented . | . . . . . . . . . . . . . . Kills | -11 -10 -9 -9 -9 -7 -7 -7 -7 -6 -6 -6 -6 -6 ------- Run | Jun Mat Mat Sto Rec Fac Gar Fac Gar Fac Ext Cet Arc Hub Combat Hostiles Destroyed 116 | . 8 13 13 4 32 6 . 7 12 3 11 4 3 Melee 3 | . . . . . . . . . 1 1 1 . . Guns 73 | . 7 . 9 3 29 5 . 4 4 2 4 3 3 Cannons 21 | . 1 13 4 . . . . . 3 . . . . AOE 13 | . . . . 1 2 . . 3 4 . 3 . . Classes Destroyed 13 | . 2 3 3 1 2 . . . 1 . . . 1 Worker 10 | . . . . 1 4 . . . 2 . . . 3 Builder 4 | . . 1 1 . . . . . 2 . . . . Hauler 12 | . . . 3 1 2 . 1 . 2 2 . . 1 Recycler 9 | . . . 3 . 3 . . . 2 1 . . . Watcher 5 | . . . 1 . 1 . . . . 1 1 . 1 Swarmer 31 | . 3 8 . . 10 4 . 4 2 . . . . Cutter 4 | . . . . . . . . . 4 . . . . Grunt 46 | . 5 1 6 4 13 2 . 2 4 1 6 . 2 Duelist 4 | . . 1 . . 1 . . 1 . . 1 . . Sentry 24 | . . 3 7 2 6 . . . 1 1 . 4 . Hunter 3 | . . . . . 1 . . . 1 1 . . . Programmer 1 | . . . . . 1 . . . . . . . . Behemoth 1 | . . . . . . . . . . . . . 1 Cetus Guard 4 | . . . . . . . . . . . 4 . . Best Kill Streak 12 | . 5 5 4 4 12 6 1 4 6 1 5 1 4 Combat Bots Only 8 | . 5 5 3 2 8 6 . 4 4 1 4 1 1 Max Kills in Single Turn 4 | . 1 2 1 4 2 1 1 2 2 1 2 1 4 Gunslinging . | . . . . . . . . . . . . . . Exploded 2 | . . . . 1 2 . . 2 2 . 2 . . Melee 1 | . . . . . . . . . 1 1 1 . . Uniques/NPCs Destroyed . | . . . . . . . . . . . . . . Combat | -11 -10 -9 -9 -9 -7 -7 -7 -7 -6 -6 -6 -6 -6 -------- Run | Jun Mat Mat Sto Rec Fac Gar Fac Gar Fac Ext Cet Arc Hub Damage Taken 10444 | . 365 543 660 95 2797 291 17 390 1150 460 1601 592 1483 Core 1569 | . 80 73 58 15 311 113 . 55 249 116 184 23 292 Absorbed by Shields 251 | . . . . . 197 . . . . 54 . . . Reduced by Siege Mode 22 | . . . . . . . . . . . 10 12 . Redirected to Shielding 3 | . 3 . . . . . . . . . . . . Regen/Repaired (Parts) 1488 | . . . . . 383 294 . 31 . 476 21 163 120 Core Remaining (%) 65 | 100 68 . . 63 . . . 31 . . . . . Volleys Fired 479 | . 26 36 64 6 143 16 . 26 41 31 27 30 33 Largest 2 | . 2 2 2 2 2 2 . 1 2 1 1 1 2 Hottest 125 | . 78 78 112 99 81 72 . 39 74 57 57 50 125 Shots Fired 736 | . 52 72 116 12 231 18 . 25 72 31 27 30 50 Gun 563 | . 46 . 89 12 230 18 . 21 34 22 11 30 50 Cannon 151 | . 6 72 27 . . . . . 33 . 13 . . Launcher 14 | . . . . . 1 . . 3 5 2 3 . . Special 8 | . . . . . . . . 1 . 7 . . . Kinetic 507 | . 52 72 112 . 149 2 . 6 63 13 5 . 33 Thermal 176 | . . . 4 8 81 2 . 15 4 9 6 30 17 Explosive 14 | . . . . . 1 . . 3 5 2 3 . . Electromagnetic 31 | . . . . 4 . 14 . . . . 13 . . Robot Hit Streak 58 | . 15 9 16 8 17 5 . 7 39 19 11 40 58 Robot Miss Streak 6 | . 3 6 3 1 6 2 . 3 5 2 2 . 3 Penetration Max 1 | . . . . . . . . . . . 1 . 1 Secondary Targets 6 | . 2 . 1 . 2 . . . . . . . 1 Max Gunslinging Chain 1 | . 1 . 1 . 1 . . . . . . . 1 Shots Hit Robots 611 | . 32 32 75 9 163 10 1 60 76 46 31 30 46 Core Hits 383 | . 17 16 33 10 98 6 1 28 74 11 37 11 41 Critical Kills 4 | . 1 . . . 1 . . . . . 2 . . Critical Parts Destroyed 3 | . . . 1 . . . . . . 2 . . . Critical Strikes 18 | . 1 . 1 1 4 . . 3 1 4 3 . . Burn 1 | . . . . 1 . . . . . . . . . Destroy 5 | . 1 . 1 . 1 . . . . . 2 . . Blast 3 | . . . . . 3 . . . . . . . . Smash 2 | . . . . . . . . . . 2 . . . Sever 7 | . . . . . . . . 3 1 2 1 . . Melee Attacks 108 | . . . . . . 5 2 42 17 35 7 . . Impact 34 | . . . . . . 5 2 . . 27 . . . Slashing 74 | . . . . . . . . 42 17 8 7 . . Piercing . | . . . . . . . . . . . . . . Sneak Attacks 11 | . . . . . . . 1 . 6 4 . . . Combat Hostiles . | . . . . . . . . . . . . . . Follow-up Attacks . | . . . . . . . . . . . . . . Damage Inflicted 17321 | . 282 742 1356 436 3306 329 70 2933 2417 1438 1349 800 1863 Guns 8293 | . 243 . 988 213 3119 329 . 246 520 468 276 800 1091 Cannons 1988 | . 39 696 333 . . . . . 563 . 357 . . Explosions 2584 | . . . . 214 128 . . 369 659 62 528 . 624 Melee 4158 | . . . . . . . 70 2318 674 908 188 . . Ramming 298 | . . 46 35 9 59 . . . 1 . . . 148 Kinetic 6425 | . 282 696 1250 . 2092 . . 66 1026 276 164 . 573 Thermal 3293 | . . . 71 336 1027 . . 180 57 192 112 800 518 Explosive 1746 | . . . . . 128 . . 369 659 62 528 . . Electromagnetic 1401 | . . . . 91 . 329 . . . . 357 . 624 Impact 744 | . . . . . . . 70 . . 674 . . . Slashing 3414 | . . . . . . . . 2318 674 234 188 . . Piercing . | . . . . . . . . . . . . . . Highest Corruption 15 | . . 2 4 4 5 5 5 5 . 1 1 1 15 Average Corruption 3 | . . 2 2 4 5 5 5 5 . 1 1 1 1 Corruption Purged . | . . . . . . . . . . . . . . Corruption Blocked . | . . . . . . . . . . . . . . Effects 61 | . . 1 12 22 2 5 3 8 . . 2 1 5 Message Errors 15 | . . . 3 3 1 2 . 3 . . 2 . 1 Matter Fused 14 | . . 1 3 5 1 1 1 . . . . 1 1 Heat Flow Errors 12 | . . . 2 5 . 1 1 1 . . . . 2 Energy Discharges 5 | . . . . 3 . . . 2 . . . . . Parts Rejected 2 | . . . 1 . . 1 . . . . . . . Parts Fused 2 | . . . . 2 . . . . . . . . . Data Loss (minor) 5 | . . . 1 3 . . . . . . . . 1 Data Loss (major) 1 | . . . . . . . 1 . . . . . . Alerts 3 | . . . 1 1 . . . 1 . . . . . Weapon Failures 2 | . . . 1 . . . . 1 . . . . . Overload Shots . | . . . . . . . . . . . . . . Overflow Damage 424 | . . 4 . 12 . . . 45 99 190 . . 74 Projectiles 4 | . . 4 . . . . . . . . . . . Explosions 103 | . . . . 12 . . . 35 33 . . . 23 Melee 317 | . . . . . . . . 10 66 190 . . 51 Knockbacks 22 | . . 9 . 1 . . . . 8 2 . . 2 Impact 6 | . . 1 . 1 . . . . . 2 . . 2 Kinetic 15 | . . 7 . . . . . . 8 . . . . Secondary 1 | . . 1 . . . . . . . . . . . Self-Inflicted Damage 449 | . . . . 40 33 . . . 236 38 27 . 75 Shots 10 | . . . . 1 1 . . . 4 1 2 . 1 Rammed 25 | . . 7 6 2 3 . . . 1 . . . 6 Targets Rammed 34 | . . 8 7 2 10 . . . 1 . . . 6 Kicked 6 | . . . . . 6 . . . . . . . . Crushed 3 | . . 1 1 . 1 . . . . . . . . Highest Temperature 393 | . 81 372 278 222 257 169 208 106 108 14 196 81 393 Average Temperature 88 | . 21 125 112 74 79 61 173 19 38 5 69 29 163 Received Heat Transfer 2548 | . 150 45 312 15 708 81 . 135 156 100 381 144 321 Effects 11 | . . 1 1 . 4 . . . . . . . 5 Shutdowns 1 | . . 1 . . . . . . . . . . . Energy Bleed 3 | . . . . . 2 . . . . . . . 1 Interference 6 | . . . 1 . 2 . . . . . . . 3 Matter Decay 1 | . . . . . . . . . . . . . 1 Siege Activations 3 | . . . . . . . . . . . 2 1 . Total Turns 61 | . . . . . . . . . . . 21 40 . Longest Duration 40 | . . . . . . . . . . . 14 40 . Robots Corrupted 4 | . . . . . . 1 . . . . 3 . . Combat Hostiles 4 | . . . . . . 1 . . . . 3 . . Parts Fried 17 | . . . . 2 . 3 . . . 3 2 . 7 Impact Corruptions 9 | . . 1 . . . . . . . 6 . . 2 Robots Melted 2 | . . . . . 1 . . . . . . 1 . Combat Hostiles 2 | . . . . . 1 . . . . . . 1 . Parts Melted 13 | . . . . 4 3 . . . . . . 5 1 Heat Transferred 5724 | . . . 148 683 2098 . . 666 111 336 174 1110 398 Parts Sabotaged . | . . . . . . . . . . . . . . Parts Stolen . | . . . . . . . . . . . . . . Parts Stripped . | . . . . . . . . . . . . . . Power Chain Reactions 1 | . . . . 1 . . . . . . . . . Missiles Intercepted . | . . . . . . . . . . . . . . Alert | -11 -10 -9 -9 -9 -7 -7 -7 -7 -6 -6 -6 -6 -6 ------- Run | Jun Mat Mat Sto Rec Fac Gar Fac Gar Fac Ext Cet Arc Hub Peak Influence 1042 | . 200 453 358 208 684 635 448 566 721 1042 719 417 721 Initial 583 | . . 84 136 128 200 449 333 313 296 352 583 287 145 Average 330 | . 115 303 207 98 353 517 399 372 484 582 595 368 293 Maximum Alert Level 3 | . 1 2 1 1 2 2 2 2 3 3 3 2 3 Low Security (%) 26 | 100 90 15 38 89 11 . . . . . . . 45 Level 1 37 | . 9 58 61 10 54 . 49 76 25 8 . 54 34 Level 2 30 | . . 25 . . 33 100 50 23 61 68 72 45 10 Level 3 4 | . . . . . . . . . 13 22 27 . 10 Level 4 . | . . . . . . . . . . . . . . Level 5 . | . . . . . . . . . . . . . . High Security . | . . . . . . . . . . . . . . Max Security . | . . . . . . . . . . . . . . Squads Dispatched 27 | . 2 . 2 . 9 . 1 . 8 2 . . 3 Investigation 3 | . 1 . . . . . . . 1 1 . . . Extermination 1 | . . . . . 1 . . . . . . . . Reinforcement 15 | . 1 . 2 . 2 . 1 . 5 1 . . 3 Assault 2 | . . . . . . . . . 2 . . . . Garrison 6 | . . . . . 6 . . . . . . . . Intercept . | . . . . . . . . . . . . . . Searches Triggered . | . . . . . . . . . . . . . . Construction Impeded . | . . . . . . . . . . . . . . Haulers Reinforced 6 | . . . . . 2 . . . 3 . . . 1 Active Scanning Responses . | . . . . . . . . . . . . . . Cargo Convoy Interrupts . | . . . . . . . . . . . . . . Stealth | -11 -10 -9 -9 -9 -7 -7 -7 -7 -6 -6 -6 -6 -6 --------- Run | Jun Mat Mat Sto Rec Fac Gar Fac Gar Fac Ext Cet Arc Hub Distress Signals 8 | . 1 1 1 . 2 . . . . 1 1 . 1 Communications Jammed . | . . . . . . . . . . . . . . Distress Signals . | . . . . . . . . . . . . . . Times Spotted 196 | . 12 17 23 2 44 6 3 11 19 24 13 4 18 Peak Tracking Total 11 | . 5 6 4 2 8 5 2 7 6 6 5 1 11 Tactical Retreats 13 | . . 1 . . 5 . . 1 3 . 1 . 2 Traps | -11 -10 -9 -9 -9 -7 -7 -7 -7 -6 -6 -6 -6 -6 ------- Run | Jun Mat Mat Sto Rec Fac Gar Fac Gar Fac Ext Cet Arc Hub Traps Triggered 7 | . 2 1 1 . . 1 . 1 1 . . . . Indirectly . | . . . . . . . . . . . . . . Trap Hack Attempts . | . . . . . . . . . . . . . . Triggered . | . . . . . . . . . . . . . . Disarmed . | . . . . . . . . . . . . . . Reprogrammed . | . . . . . . . . . . . . . . Reused . | . . . . . . . . . . . . . . Traps Extracted . | . . . . . . . . . . . . . . Installed . | . . . . . . . . . . . . . . Triggered . | . . . . . . . . . . . . . . Machines | -11 -10 -9 -9 -9 -7 -7 -7 -7 -6 -6 -6 -6 -6 ---------- Run | Jun Mat Mat Sto Rec Fac Gar Fac Gar Fac Ext Cet Arc Hub Machines Disabled 26 | . . 1 1 . . 1 . . . 3 . . 20 Max in Single Turn 20 | . . 1 1 . . 1 . . . . . . 20 Garrison Relay 1 | . . . . . . 1 . . . . . . . Network Hub 2 | . . . . . . . . . . . . . 2 Machines Repaired . | . . . . . . . . . . . . . . Machines Sabotaged . | . . . . . . . . . . . . . . Overloaded Fab Kills . | . . . . . . . . . . . . . . Hacking | -11 -10 -9 -9 -9 -7 -7 -7 -7 -6 -6 -6 -6 -6 --------- Run | Jun Mat Mat Sto Rec Fac Gar Fac Gar Fac Ext Cet Arc Hub Machines Accessed 35 | . . 4 4 8 4 1 4 1 2 7 . . . Terminals 26 | . . 4 3 4 2 1 3 1 1 7 . . . Fabricators 1 | . . . . . . . . . 1 . . . . Repair Stations 1 | . . . . . 1 . . . . . . . . Recycling Units 5 | . . . 1 4 . . . . . . . . . Scanalyzers . | . . . . . . . . . . . . . . Garrison Access 2 | . . . . . 1 . 1 . . . . . . Total Hacks 64 | . . 10 5 13 7 1 10 2 5 11 . . . Successful 32 | . . 1 4 9 5 . 5 . 3 5 . . . Failed 32 | . . 9 1 4 2 1 5 2 2 6 . . . Catastrophic 9 | . . 4 . 1 1 1 1 1 . . . . . Database Lockouts . | . . . . . . . . . . . . . . Manual 36 | . . 10 2 12 2 . 6 . 2 2 . . . Terminals 51 | . . 10 4 7 4 1 9 2 3 11 . . . Fabricators 2 | . . . . . . . . . 2 . . . . Repair Stations 2 | . . . . . 2 . . . . . . . . Recycling Units 7 | . . . 1 6 . . . . . . . . . Scanalyzers . | . . . . . . . . . . . . . . Garrison Access 2 | . . . . . 1 . 1 . . . . . . Terminal Hacks 18 | . . 1 4 3 1 . 2 . 2 5 . . . Part Schematic 4 | . . . . 1 . . 1 . 2 . . . . Robot Analysis 1 | . . . . . 1 . . . . . . . . Prototype ID Bank 1 | . . . . . . . 1 . . . . . . Open Door 6 | . . . 2 . . . . . . 4 . . . Branch Access Points 1 | . . 1 . . . . . . . . . . . Alert Level 1 | . . . . 1 . . . . . . . . . Unreport Threat 3 | . . . 2 1 . . . . . . . . . Locate Traps 1 | . . . . . . . . . . 1 . . . Fabricator Hacks . | . . . . . . . . . . . . . . Repair Station Hacks 2 | . . . . . 2 . . . . . . . . Scan Component 1 | . . . . . 1 . . . . . . . . Repair 1 | . . . . . 1 . . . . . . . . Recycling Unit Hacks . | . . . . . . . . . . . . . . Scanalyzer . | . . . . . . . . . . . . . . Garrison Access Hacks 2 | . . . . . 1 . 1 . . . . . . Unlock Access 2 | . . . . . 1 . 1 . . . . . . Unauthorized Hacks 10 | . . . . 6 1 . 2 . 1 . . . . Terminals 6 | . . . . 2 1 . 2 . 1 . . . . Assimilate 1 | . . . . . . . 1 . . . . . . Botnet 5 | . . . . 2 1 . 1 . 1 . . . . Fabricators . | . . . . . . . . . . . . . . Repair Stations . | . . . . . . . . . . . . . . Recycling Units 4 | . . . . 4 . . . . . . . . . Tunnel 4 | . . . . 4 . . . . . . . . . Scanalyzers . | . . . . . . . . . . . . . . Garrison Access . | . . . . . . . . . . . . . . Data Cores Recovered . | . . . . . . . . . . . . . . Used . | . . . . . . . . . . . . . . Hacking Detections 20 | . . 4 . 3 3 1 3 1 2 3 . . . Full Trace Events 3 | . . 2 . . . . . . . 1 . . . Feedback Events . | . . . . . . . . . . . . . . Feedback Blocked . | . . . . . . . . . . . . . . Robot Schematics Acquired . | . . . . . . . . . . . . . . Robots Built . | . . . . . . . . . . . . . . Authchips . | . . . . . . . . . . . . . . Time . | . . . . . . . . . . . . . . Total Robot Build Rating . | . . . . . . . . . . . . . . Part Schematics Acquired 4 | . . . . 1 . . 1 . 2 . . . . Parts Built . | . . . . . . . . . . . . . . Authchips . | . . . . . . . . . . . . . . Time . | . . . . . . . . . . . . . . Total Part Build Rating . | . . . . . . . . . . . . . . Parts Repaired 1 | . . . . . 1 . . . . . . . . Time 32 | . . . . . 32 . . . . . . . . Parts Recycled . | . . . . . . . . . . . . . . Recycled Matter . | . . . . . . . . . . . . . . Retrieved Matter . | . . . . . . . . . . . . . . Retrieved Components . | . . . . . . . . . . . . . . Parts Scanalyzed . | . . . . . . . . . . . . . . Part Schematics Acquired . | . . . . . . . . . . . . . . Parts Damaged . | . . . . . . . . . . . . . . Bothacking | -11 -10 -9 -9 -9 -7 -7 -7 -7 -6 -6 -6 -6 -6 ------------ Run | Jun Mat Mat Sto Rec Fac Gar Fac Gar Fac Ext Cet Arc Hub Used RIF Installer 2 | . . . . . . 1 . 1 . . . . . Watcher Feeds 1 | . . . . . . . . 1 . . . . . Robots Hacked 1 | . . . . . . . . 1 . . . . . Non-combat . | . . . . . . . . . . . . . . Combat 1 | . . . . . . . . 1 . . . . . Robot Hacks Applied 1 | . . . . . . . . 1 . . . . . amplify_resonance 1 | . . . . . . . . 1 . . . . . Relay Couplers Released 4 | . . . . . . 4 . . . . . . . Machine Destruction 4 | . . . . . . 4 . . . . . . . Attached 1 | . . . . . . 1 . . . . . . . Fabnet Peak Effective % . | . . . . . . . . . . . . . . Robots Rewired 11 | . . . . 5 . . . . . 6 . . . Allies Hacked . | . . . . . . . . . . . . . . Hacks Repelled . | . . . . . . . . . . . . . . Allies | -11 -10 -9 -9 -9 -7 -7 -7 -7 -6 -6 -6 -6 -6 -------- Run | Jun Mat Mat Sto Rec Fac Gar Fac Gar Fac Ext Cet Arc Hub Total Allies 19 | . . . . 5 . . . . . 14 . . . Largest Group 10 | . . . . 4 2 . . . . 10 4 . . Highest-Rated Group 397 | . . . . 33 16 . . . . 397 124 . . Highest-Rated Ally 159 | . . . . 9 9 . . . . 159 39 . . Total Orders . | . . . . . . . . . . . . . . Ally Attacks 184 | . . . . 10 1 . . . . 169 4 . . Total Damage 3496 | . . . . 88 12 . . . . 3326 70 . . Kills 27 | . . . . . . . . . . 27 . . . Allies Corrupted . | . . . . . . . . . . . . . . Allies Melted . | . . . . . . . . . . . . . . Intel | -11 -10 -9 -9 -9 -7 -7 -7 -7 -6 -6 -6 -6 -6 ------- Run | Jun Mat Mat Sto Rec Fac Gar Fac Gar Fac Ext Cet Arc Hub Robot Analysis Total 1 | . . . . . 1 . . . . . . . . Derelict Logs Recovered . | . . . . . . . . . . . . . . Drone Launches . | . . . . . . . . . . . . . . Drone Recoveries . | . . . . . . . . . . . . . . Exploration | -11 -10 -9 -9 -9 -7 -7 -7 -7 -6 -6 -6 -6 -6 ------------- Run | Jun Mat Mat Sto Rec Fac Gar Fac Gar Fac Ext Cet Arc Hub Turns Passed 6608 | 68 296 654 705 849 1328 165 158 427 389 614 310 298 347 Spaces Moved 4436 | 38 123 351 287 357 471 186 286 349 460 763 186 178 401 Core 4 | 4 . . . . . . . . . . . . . Treads 3375 | 34 123 235 287 357 264 1 . 86 460 763 186 178 401 Legs 207 | . . . . . 207 . . . . . . . . Wheels 116 | . . 116 . . . . . . . . . . . Hover 734 | . . . . . . 185 286 263 . . . . . Flight . | . . . . . . . . . . . . . . Fastest Speed 39 | 50 160 115 160 160 160 39 40 40 45 45 45 45 45 Average Speed 96 | 148 160 145 160 189 191 43 40 53 45 45 86 99 52 Slowest Speed 320 | 160 160 160 160 240 320 320 40 105 45 45 102 102 102 Overloaded Moves . | . . . . . . . . . . . . . . Propulsion Burnouts . | . . . . . . . . . . . . . . Robots Hopped . | . . . . . . . . . . . . . . Cave-ins Triggered . | . . . . . . . . . . . . . . Exploration Rate (%) 36 | 3 28 30 49 56 14 36 9 33 12 72 51 86 33 Regions Visited 13 Branch Regions 6 Pre-discovered Areas 4 | . . . . 4 . . . . . . . . . Known Exits Taken 3 | . . 1 . . 1 . 1 . . . . . . Unknown Exits Taken 8 | 1 1 . 1 1 . . . . 1 1 1 1 . Scrap Searched . | . . . . . . . . . . . . . . Spaces Dug 26 | . . . . . . 1 1 . 1 23 . . . Terrain Destroyed 363 | . . 4 1 . 6 1 1 17 51 23 97 . 162 Melee 5 | . . . . . . 1 1 . 1 2 . . . Projectile 9 | . . 4 1 . . . . . . . 3 . 1 AOE 349 | . . . . . 6 . . 17 50 21 94 . 161 Terrain Rammed . | . . . . . . . . . . . . . . Walls Destroyed . | . . . . . . . . . . . . . . Machines Disabled . | . . . . . . . . . . . . . . Actions | -11 -10 -9 -9 -9 -7 -7 -7 -7 -6 -6 -6 -6 -6 --------- Run | Jun Mat Mat Sto Rec Fac Gar Fac Gar Fac Ext Cet Arc Hub Total 6010 | 47 181 425 417 520 771 255 327 510 558 946 296 268 489 Wait 550 | . 13 11 9 62 94 14 26 44 28 98 62 58 31 Move 4423 | 37 122 350 286 356 471 184 286 347 459 762 185 177 401 Hop . | . . . . . . . . . . . . . . Pick Up 88 | 4 7 7 11 12 15 3 6 13 1 3 3 . 3 Fast Attach 58 | 6 5 4 3 1 15 3 1 3 3 4 4 1 5 Attach 30 | . . 1 2 3 9 4 . . 3 4 4 . . Detach 17 | . 2 . . . 4 . . 1 2 6 1 . 1 Swap 34 | . . . 15 5 . 1 2 5 1 2 . 1 2 Drop 113 | . 6 8 20 15 10 19 4 16 2 2 3 1 7 Fire 479 | . 26 36 64 6 143 16 . 26 41 31 27 30 33 Melee 107 | . . . . . . 5 2 42 17 34 7 . . Ram . | . . . . . . . . . . . . . . Kick 6 | . . . . . 6 . . . . . . . . Crush 28 | . . 8 7 2 4 . . . 1 . . . 6 Escape Stasis 19 | . . . . . . 6 . 13 . . . . . Rewire 58 | . . . . 58 . . . . . . . . . Trap . | . . . . . . . . . . . . . . Miscellaneous . | . . . . . . . . . . . . . . Route ------- -11/Junkyard -10/Materials -9/Materials (discovered 3 exits: Min / *Sto x2) -9/Storage -9/Recycling -7/Factory -7/Garrison -7/Factory -7/Garrison -6/Factory -6/Extension (discovered 2 exits: [*Fac] / [*Cet]) -6/Cetus -6/Archives (discovered 2 exits: [*Fac] / [*Hub]) -6/Hub_04(d) (discovered 1 exit: [*Fac]) History --------- Turn | Location | Event 7 | -11/Junkyard | Discovered new exit (range 16) 69 | -11/Junkyard | Entered Materials 303 | -10/Materials | Discovered new exit (range 13) 316 | -10/Materials | Build established: Mutant 365 | -10/Materials | Entered another Materials area 365 | -9/Materials | Evolved 2 slots: Propulsion x1, Utility x1 541 | -9/Materials | Discovered new exit (range 13) 900 | -9/Materials | Identified exit to Mines 900 | -9/Materials | Identified exit to Storage 1019 | -9/Materials | Entered Storage 1183 | -9/Storage | Used back door to open Recycling access 1183 | -9/Storage | Discovered new exit (range 5) 1547 | -9/Storage | Build established: Scavenger-Mutant 1724 | -9/Storage | Entered Recycling 1725 | -9/Recycling | Found Scrap Engine 2101 | -9/Recycling | Build established: Scavenger-Construct 2529 | -9/Recycling | Discovered new exit (range 16) 2555 | -9/Recycling | Build established: Construct 2573 | -9/Recycling | Entered Factory 2573 | -7/Factory | Accompanied by 2 allies 2573 | -7/Factory | Evolved 4 slots: Propulsion x1, Utility x3 2861 | -7/Factory | Build established: Scavenger-Mutant 2950 | -7/Factory | Repaired Imp. Treads 3200 | -7/Factory | Lost 8 parts (1p4n1u2w) 3203 | -7/Factory | Destroyed 8 combat bots 3402 | -7/Factory | Garrison activated, responded to threat 3901 | -7/Factory | Identified exit to Garrison 3901 | -7/Factory | Entered Garrison 3944 | -7/Garrison | Installed Relay Interface Framework 3977 | -7/Garrison | Garrison Relay disabled 4000 | -7/Garrison | Triggered checkpoint 4010 | -7/Garrison | Core integrity fell below 50% 4061 | -7/Garrison | Discovered new exit (range 12) 4066 | -7/Garrison | Entered Factory 4197 | -7/Factory | Build established: Construct 4224 | -7/Factory | Identified exit to Garrison 4224 | -7/Factory | Entered Garrison 4509 | -7/Garrison | Expanded RIF knowledge: Watcher Feeds 4646 | -7/Garrison | Discovered new exit (range 8) 4651 | -7/Garrison | Entered Factory 4651 | -6/Factory | Evolved 2 slots: Utility x1, Weapon x1 5001 | -6/Factory | First assault squad dispatched 5021 | -6/Factory | Lost 3 parts (1p2w) 5033 | -6/Factory | Discovered new exit (range 16) 5040 | -6/Factory | Entered Extension 5062 | -6/Extension | Rescued a captive Derelict 5063 | -6/Extension | Rescued a captive Derelict 5077 | -6/Extension | Rescued a captive Derelict 5103 | -6/Extension | Rescued a captive Derelict 5103 | -6/Extension | Rescued a captive Derelict 5163 | -6/Extension | Rescued A7 5332 | -6/Extension | Spotted B-75 Beast 5369 | -6/Extension | Allies destroyed B-75 Beast 5409 | -6/Extension | Found Prototype Launcher 5409 | -6/Extension | Identified Rocket Array 5411 | -6/Extension | Spotted B-75 Beast 5415 | -6/Extension | Disrupted transfer network 5430 | -6/Extension | Allies destroyed B-75 Beast 5516 | -6/Extension | Rescued a captive Derelict 5557 | -6/Extension | Extracted ID and sensor layout for unrecognized location from A7's data core 5582 | -6/Extension | Rescued a captive Derelict 5604 | -6/Extension | Discovered new exit (range 10) 5605 | -6/Extension | Discovered new exit (range 6) 5654 | -6/Extension | Entered Cetus 5654 | -6/Cetus | Accompanied by 4 allies 5668 | -6/Cetus | Spotted Cetus Guard 5668 | -6/Cetus | Spotted Cetus Guard 5675 | -6/Cetus | Spotted Cetus Guard 5696 | -6/Cetus | Spotted Cetus Guard 5701 | -6/Cetus | Destroyed Cetus Guard 5702 | -6/Cetus | Core integrity fell below 50% 5711 | -6/Cetus | Destroyed Cetus Guard 5718 | -6/Cetus | Destroyed Cetus Guard 5739 | -6/Cetus | Destroyed Cetus Guard 5760 | -6/Cetus | Lost 7 parts (1p1n3u2w) 5935 | -6/Cetus | Discovered new exit (range 16) 5964 | -6/Cetus | Entered Archives 6003 | -6/Archives | Build established: Mutant 6138 | -6/Archives | Discovered new exit (range 16) 6180 | -6/Archives | Discovered new exit (range 16) 6262 | -6/Archives | Entered Hub_04(d) 6317 | -6/Hub_04(d) | Found Prototype Processor 6317 | -6/Hub_04(d) | Identified Exp. Targeting Computer 6334 | -6/Hub_04(d) | Found Exp. Targeting Computer 6359 | -6/Hub_04(d) | Spotted B-75 Beast 6487 | -6/Hub_04(d) | Destroyed B-75 Beast 6539 | -6/Hub_04(d) | Network Hub disabled 6566 | -6/Hub_04(d) | Found Prototype Launcher 6566 | -6/Hub_04(d) | Identified Scatter Rocket Array 6580 | -6/Hub_04(d) | Spotted Lightning 6581 | -6/Hub_04(d) | Spotted Lightning 6583 | -6/Hub_04(d) | Core integrity fell below 20% 6589 | -6/Hub_04(d) | Spotted Lightning 6591 | -6/Hub_04(d) | Network Hub disabled 6596 | -6/Hub_04(d) | System corruption reached 10% 6609 | -6/Hub_04(d) | Discovered new exit (range 15) 6609 | -6/Hub_04(d) | Destroyed by Lightning with EMDS Last Messages --------------- 06582_ EMDS Slug penetrates Wall. 06584_ Penetrated by EMDS Slug. 06584_ EMDS Slug penetrates Wall. 06588_ System corrupted: Matter fused (-7). 06590_ Slug penetrates Wall. 06590_ EMDS Slug penetrates Wall. 06591_ Penetrated by EMDS Slug. 06591_ ALERT: Network intrusion management efficiency at 70%. 06591_ Network Hub explodes. 06592_ Penetrated by EMDS Slug. 06593_ Slug penetrates Lightning. 06593_ Penetrated by EMDS Slug. 06595_ Centrium Medium Armor Plating destroyed. 06596_ EM Disruption Field destroyed. 06596_ Penetrated by EMDS Slug. 06597_ Slammed into Y-54 Guardian. 06603_ System corrupted: Heat flow error (+295). 06607_ Overheating: Matter decay (-50). 06609_ EXIT=FOUND 06609_ Penetrated by EMDS Slug. Map ----- +----------------------------------------------------+ | ?????????????????????????????????????????????????? | | ?????????????????????????????????????????????????? | | ?????????????????????????????????????????????????? | | ?????????????????????????????????????????????????? | | ?????????????????????????????????????????????????? | | ?????????????????????????????????????????????????? | | ?????????????????????????????????????????????????? | | ?????????????????????????????????????????????????? | | ?????????????????????????????????????????????????? | | ?????????????????????????????????????????????????? | | ?????????????????????????< ??????????????????????? | | ????????????????????????? ??????????????????????? | | ????????????????????????? ??????????????????????? | | ????????????????????????? #?????????????????????? | | ????????????????????????# #?????????????????????? | | ????????????????????????# #?????????????????????? | | ????????????????????????# #?????????????????????? | | ????????????????????????# #?????????????????????? | | ????????????????????????# #?????????????????????? | | ????????????????????????# #????????? ???????????? | | ???????????????????????## ########## #?????????? | | ???????????????????????# ?????????? | | ???????????????????????+ s ?????????? | | ???????????????????????# """ """ ????????? | | ???????????????????????# s""T"" ???????? | | ????????????????????????#@s"" "" ???????? | | ????????????????????????# s """ ????????? | | ????????????????????????# ??????? | | ???????????????#####????# ??????? | | ???????????????# ???# """ """ """ "??????? | | ???????????????# ???# ?????? | | ???????????????# ??# ! ?????? | | ???????????????# ??# ####?????????? | | ???????????????# ?# #????????????? | | ???????????????# ! ?# #????????????? | | ???????????????# ! # #????????????? | | ???????????????# # #????????????? | | ???????????????# + #????????????? | | ????????????????######### ######+###????????????? | | ?????????####????#= ###h #? ??????????????????? | | ????###### ##### #? ????????????????? | | ??? # #? "??? ????????????? | | ??? # ##/#### [ "??? ????????????? | | ??? """""""""""" ## ### ???# ""?" ????????????? | | ?? " " # #?# ???# ""?" #???????????? | | ?? " " # #??????#! #???????????? | | ?# " " # ###???## """" #???????????? | | ?# " """" " # !#" """" #???????????? | | ? " " " " #" """ #???????????? | | ?# " " " " #" "" #???????????? | +----------------------------------------------------+ Best States ------------- Heat Dissipation 38 Coolant Potential 65 Energy Generation 25 Energy Capacity 320 Matter Stores 300 Matter Capacity 300 Sight Range 16 Terrain Scan Density 10 ECM Strength 2 Armor Coverage 900 Resistance: KI 30 Resistance: EM 25 Utility Shielding 33 Weapon Cycling 30 Evasion (%) 57 Targeting Accuracy 24 Armor Integrity Analysis 30 Recoil Reduction 4 Relay Coupler Types 1 Relay Coupler Value 36 Item Schematics ----------------- Imp. Cooling System | -9/Recycling | Hacked Enh. Optical Array | -7/Factory | Hacked Transmission Jammer | -6/Factory | Hacked Hyp. Gauss Rifle | -6/Factory | Hacked Robot Schematics ------------------ None Fabricated ------------ Nothing Alien Tech Used ----------------- None Achievements -------------- None Challenges ------------ None Game ------ Seed HelicalStructuralBrace Manual? 0 Play Time 01:02:00 Cumulative 693.1 hours Start 2023.03.10 @ 13:07:54 End 2023.03.10 @ 14:10:29 Sessions 3 Manual Loads 0 Difficulty Rogue Special Mode None Game No. 622 Rogue 622 Adventurer 0 Explorer 0 Win Type - Total 33 Types 14/2/9/2/0/0/4/1/1 Lore% 96 Gallery% 95 Achievement% 83 Wizard Run 0 Options --------- ASCII 0 Keyboard 0 Movement Numpad Keybinds 0 Fullscreen 1 Font 18/Smallcaps Map View 76x50 Tactical HUD 1 Map Filters NONE Filters NONE Steam 1 RUN: e6feaae0-c71a-46a0-bef5-39a8dbc870e0